fUSD/lending_fUSD_20240628
["ID","MTS","AMOUNT","RATE_DAILY","PERIOD"]
[330579207,1719582095033,-487.15534199,0.00043,30]
[330579208,1719582095057,-151.0,0.00043,30]
[330579209,1719582095083,-151.0,0.00043,30]
[330579210,1719582095107,-151.0,0.00043,30]
[330579211,1719582095131,-151.0,0.00043,30]
[330579212,1719582095155,-151.0,0.00043,30]
[330579213,1719582095179,-151.0,0.00043,30]
[330579214,1719582095203,-197.0,0.00043,30]
[330579215,1719582095227,-506.0,0.00043,120]
[330579216,1719582095251,-1270.77331473,0.00043,30]
[330579217,1719582095276,-1960.42033866,0.00043,30]
[330579218,1719582095299,-2000.0,0.00043,30]
[330579219,1719582095326,-500000.0,0.00043,80]
[330579220,1719582095354,-769.66220005,0.00043,30]
[330579221,1719582095381,-2495.51,0.00043013,102]
[330579222,1719582095406,-204.36156903,0.0004302,120]
[330579223,1719582095432,-1000.0,0.00043024,30]
[330579224,1719582095458,-182.46682373,0.00043033,30]
[330579225,1719582095483,-1000.0,0.00043075,30]
[330579226,1719582095507,-157.3835357,0.0004308,30]
[330579227,1719582095532,-550.41157085,0.00043095,30]
[330579228,1719582095556,-153.85422544,0.00043096,30]
[330579229,1719582095580,-632.23,0.00043119,30]
[330579230,1719582095606,-632.23,0.00043119,30]
[330579231,1719582095637,-228.57063521,0.00043125,30]
[330579232,1719582095664,-1000.0,0.00043125,30]
[330579233,1719582095691,-166.6666667,0.00043157,30]
[330579234,1719582095716,-182.46682373,0.00043167,30]
[330579235,1719582095741,-1000.0,0.00043176,30]
[330579236,1719582095766,-228.57063521,0.00043177,30]
[330579237,1719582095790,-197.47651852,0.00043197,30]
[330579238,1719582095814,-152.24387089,0.00043201,30]
[330579239,1719582095840,-1000.0,0.00043227,30]
[330579240,1719582095864,-166.6666667,0.00043229,30]
[330579241,1719582095888,-155.75150186,0.00043241,30]
[330579242,1719582095911,-155.75150198,0.00043257,30]
[330579243,1719582095935,-397.92671971,0.0004326,30]
[330579244,1719582095960,-153.85422544,0.00043277,30]
[330579245,1719582095985,-1000.0,0.00043278,30]
[330579246,1719582096009,-2100.0,0.00043287,30]
[330579247,1719582096034,-900.0,0.00043287,30]
[330579248,1719582096058,-700.0,0.00043287,30]
[330579249,1719582096083,-600.0,0.00043287,30]
[330579250,1719582096108,-4400.0,0.00043287,30]
[330579251,1719582096133,-151.0,0.00043288,120]
[330579252,1719582096156,-182.46682373,0.00043304,30]
[330579253,1719582096180,-228.57063521,0.00043306,30]
[330579254,1719582096204,-154.79204592,0.00043323,30]
[330579255,1719582096228,-1000.0,0.00043328,30]
[330579256,1719582096251,-166.6666667,0.00043335,30]
[330579257,1719582096277,-464.3339419,0.00043365,30]
[330579258,1719582096301,-1000.0,0.00043379,30]
[330579259,1719582096326,-632.23,0.00043392,30]
[330579260,1719582096354,-632.23,0.00043392,30]
[330579261,1719582096380,-228.57063521,0.00043406,30]
[330579262,1719582096406,-192.21126125,0.00043408,30]
[330579263,1719582096432,-397.92671971,0.00043414,30]
[330579264,1719582096458,-153.85422544,0.00043423,30]
[330579265,1719582096484,-166.96977762,0.00043426,30]
[330579266,1719582096517,-1000.0,0.0004343,30]
[330579267,1719582096543,-500.0,0.00043456,120]
[330579268,1719582096570,-197.47651852,0.00043479,30]
[330579269,1719582096598,-1000.0,0.0004348,30]
[330579270,1719582096630,-343.56587182,0.00043499,30]
[330579271,1719582096659,-975.2324384,0.00043501,30]
[330579272,1719582096688,-207.2920081,0.00043515,30]
[330579273,1719582096715,-1000.0,0.00043531,30]
[330579274,1719582096742,-153.85422544,0.00043536,30]
[330579275,1719582096769,-975.2324385,0.00043538,30]
[330579276,1719582096795,-153.85422557,0.00043542,30]
[330579277,1719582096821,-152.24387108,0.0004355,30]
[330579278,1719582096849,-2495.51,0.00043561,104]
[330579279,1719582096880,-197.47651852,0.00043574,30]
[330579280,1719582096906,-1000.0,0.00043582,30]
[330579281,1719582096933,-690.02060578,0.00043626,30]
[330579282,1719582096960,-1000.0,0.00043633,30]
[330579283,1719582096985,-1464.11520179,0.00043633,30]
[330579284,1719582097013,-287.36369513,0.00043641,30]
[330579285,1719582097041,-716.52572998,0.00043654,30]
[330579286,1719582097066,-632.23,0.00043665,30]
[330579287,1719582097090,-632.23,0.00043665,30]
[330579288,1719582097122,-690.02060578,0.00043675,30]
[330579289,1719582097148,-1276.35942145,0.0004368,30]
[330579290,1719582097176,-1000.0,0.00043683,30]
[330579291,1719582097204,-287.36369513,0.00043685,30]
[330579292,1719582097232,-151.0,0.00043699,120]
[330579293,1719582097258,-981.97456039,0.00043721,30]
[330579294,1719582097285,-617.2772037,0.00043723,30]
[330579295,1719582097311,-287.36369513,0.00043726,30]
[330579296,1719582097338,-981.97456039,0.00043726,30]
[330579297,1719582097721,-154.79204603,0.00043727,30]
[330579298,1719582097760,-617.2772037,0.00043728,30]
[330579299,1719582097795,-716.52572998,0.00043733,30]
[330579300,1719582097827,-617.2772037,0.00043734,30]
[330579301,1719582097857,-1000.0,0.00043734,30]
[330579302,1719582097891,-1464.11520188,0.00043747,30]
[330579303,1719582097922,-490.66778432,0.00043748,120]
[330579304,1719582097954,-690.02060578,0.00043749,30]
[330579305,1719582097986,-182.46682373,0.00043756,30]
[330579306,1719582098018,-716.52572998,0.00043756,30]
[330579307,1719582098050,-293.81022576,0.00043763,30]
[330579308,1719582098084,-293.81022576,0.00043775,30]
[330579309,1719582098117,-2000.0,0.00043781,30]
[330579310,1719582098152,-397.92671985,0.00043783,30]
[330579311,1719582098187,-1000.0,0.00043785,30]
[330579312,1719582098219,-293.81022576,0.00043787,30]
[330579313,1719582098250,-981.97456039,0.00043789,30]
[330579314,1719582098281,-23996.38468686,0.000438,120]
[330579315,1719582098312,-464.75209546,0.000438,30]
[330579316,1719582098344,-161.87,0.000438,120]
[330579317,1719582098382,-150.0,0.00043808,120]
[330579318,1719582098418,-192.21126125,0.00043808,30]
[330579319,1719582098450,-207.29200823,0.00043814,30]
[330579320,1719582098496,-1276.35942145,0.00043816,30]
[330579321,1719582098539,-182.46682392,0.00043822,30]
[330579322,1719582098582,-2100.0,0.00043835,30]
[330579323,1719582098623,-900.0,0.00043835,30]
[330579324,1719582098662,-700.0,0.00043835,30]
[330579325,1719582098699,-600.0,0.00043835,30]
[330579326,1719582098733,-4400.0,0.00043835,30]
[330579327,1719582098770,-500.0,0.00043835,30]
[330579328,1719582098805,-5000.0,0.00043835,120]
[330579329,1719582098841,-5000.0,0.00043835,120]
[330579330,1719582098878,-5000.0,0.00043835,120]
[330579331,1719582098913,-674.96700971,0.00043835,120]
[330579332,1719582098948,-515.89,0.00043835,120]
[330579333,1719582098981,-515.89,0.00043835,120]
[330579334,1719582099018,-515.89,0.00043835,120]
[330579335,1719582099054,-515.89,0.00043835,120]
[330579336,1719582099091,-515.89,0.00043835,120]
[330579337,1719582099128,-515.89,0.00043835,120]
[330579338,1719582099163,-515.89,0.00043835,120]
[330579339,1719582099199,-515.89,0.00043835,120]
[330579340,1719582099233,-515.89,0.00043835,120]
[330579341,1719582099273,-515.89,0.00043835,120]
[330579342,1719582099308,-515.89,0.00043835,120]
[330579343,1719582099343,-515.89,0.00043835,120]
[330579344,1719582099382,-515.89,0.00043835,120]
[330579345,1719582099419,-515.89,0.00043835,120]
[330579346,1719582099456,-515.89,0.00043835,120]
[330579347,1719582099495,-515.89,0.00043835,120]
[330579348,1719582099532,-515.89,0.00043835,120]
[330579349,1719582099569,-515.89,0.00043835,120]
[330579350,1719582099603,-515.89,0.00043835,120]
[330579351,1719582099644,-515.89,0.00043835,120]
[330579352,1719582099683,-515.89,0.00043835,120]
[330579353,1719582099722,-515.89,0.00043835,120]
[330579354,1719582099759,-515.89,0.00043835,120]
[330579355,1719582099800,-515.89755272,0.00043835,120]
[330579356,1719582099838,-5000.0,0.00043835,120]
[330579357,1719582099875,-5000.0,0.00043835,120]
[330579358,1719582099910,-1142.9,0.00043835,120]
[330579359,1719582099946,-1109.92438089,0.00043836,30]
[330579360,1719582099982,-192.2112614,0.0004385,30]
[330579361,1719582100018,-550.41157085,0.00043854,30]
[330579362,1719582100058,-1105.81277412,0.0004388,30]
[330579363,1719582100094,-151.0064256,0.00043896,30]
[330579364,1719582100129,-632.23,0.00043939,30]
[330579365,1719582100164,-632.23,0.00043939,30]
[330579366,1719582100198,-151.0,0.00043945,120]
[330579367,1719582100233,-157.3835358,0.00043952,30]
[330579368,1719582100270,-1276.3594215,0.00043953,30]
[330579369,1719582100305,-228.57063522,0.0004397,30]
[330579370,1719582100341,-2166.46638277,0.00043978,30]
[330579371,1719582100377,-550.41157109,0.00043987,30]
[330579372,1719582100416,-50000.0,0.00044,34]
[330579373,1719582100451,-164.73213251,0.00044,30]
[330579374,1719582100486,-1000.0,0.00044,120]
[330579375,1719582100523,-900.0,0.00044,120]
[330579376,1719582100559,-900.0,0.00044,30]
[330579377,1719582100595,-130000.0,0.00044,120]
[330579378,1719582100634,-2495.51,0.00044109,106]
[330579379,1719582100670,-1000.0,0.00044109,120]
[330579380,1719582100708,-150.0,0.00044163,120]
[330579381,1719582100744,-1120.44755864,0.000442,120]
[330579382,1719582100779,-1120.44755864,0.000442,120]
[330579383,1719582100813,-1120.44755864,0.000442,120]
[330579384,1719582100848,-1120.44755864,0.000442,120]
[330579385,1719582100883,-1120.44755864,0.000442,120]
[330579386,1719582100917,-632.23,0.00044212,30]
[330579387,1719582100951,-632.23,0.00044212,30]
[330579388,1719582100986,-150.0,0.00044231,120]
[330579389,1719582101022,-500.0,0.00044346,120]
[330579390,1719582101056,-156.08004412,0.0004438,120]
[330579391,1719582101091,-156.08004412,0.0004438,120]
[330579392,1719582101125,-156.08004412,0.0004438,120]
[330579393,1719582101159,-156.58,0.0004438,120]
[330579394,1719582101192,-1090.21913049,0.0004438,120]
[330579395,1719582101225,-1090.21913049,0.0004438,120]
[330579396,1719582101259,-1090.21913049,0.0004438,120]
[330579397,1719582101293,-1090.21913049,0.0004438,120]
[330579398,1719582101331,-1090.21913049,0.0004438,120]
[330579399,1719582101367,-1090.21913049,0.0004438,120]
[330579400,1719582101407,-1090.21913049,0.0004438,120]
[330579401,1719582101814,-1090.21913049,0.0004438,120]
[330579402,1719582101849,-1090.21913049,0.0004438,120]
[330579403,1719582101882,-1090.21913049,0.0004438,120]
[330579404,1719582101915,-1090.21913049,0.0004438,120]
[330579405,1719582101947,-1090.21913049,0.0004438,120]
[330579406,1719582101978,-1090.21913049,0.0004438,120]
[330579407,1719582102010,-1090.21913049,0.0004438,120]
[330579408,1719582102044,-1090.21913049,0.0004438,120]
[330579409,1719582102078,-1090.21913049,0.0004438,120]
[330579410,1719582102115,-1090.21913049,0.0004438,120]
[330579411,1719582102147,-1090.21913049,0.0004438,120]
[330579412,1719582102182,-1090.21913049,0.0004438,120]
[330579413,1719582102215,-1090.71,0.0004438,120]
[330579414,1719582102249,-914.36582416,0.0004438,120]
[330579415,1719582102284,-914.36582416,0.0004438,120]
[330579416,1719582102317,-914.36582416,0.0004438,120]
[330579417,1719582102352,-914.36582416,0.0004438,120]
[330579418,1719582102388,-914.36582416,0.0004438,120]
[330579419,1719582102422,-914.36582416,0.0004438,120]
[330579420,1719582102455,-914.36582416,0.0004438,120]
[330579421,1719582102488,-914.36582416,0.0004438,120]
[330579422,1719582102523,-914.36582416,0.0004438,120]
[330579423,1719582102557,-914.36582416,0.0004438,120]
[330579424,1719582102596,-914.36582416,0.0004438,120]
[330579425,1719582102639,-914.36582416,0.0004438,120]
[330579426,1719582102672,-914.36582416,0.0004438,120]
[330579427,1719582102705,-914.36582416,0.0004438,120]
[330579428,1719582102739,-914.36582416,0.0004438,120]
[330579429,1719582102772,-914.36582416,0.0004438,120]
[330579430,1719582102806,-914.36582416,0.0004438,120]
[330579431,1719582102840,-914.36582416,0.0004438,120]
[330579432,1719582102873,-914.36582416,0.0004438,120]
[330579433,1719582102906,-914.86,0.0004438,120]
[330579434,1719582102940,-1224.04429431,0.0004438,120]
[330579435,1719582102978,-1224.04429431,0.0004438,120]
[330579436,1719582103011,-1224.04429431,0.0004438,120]
[330579437,1719582103044,-1224.04429431,0.0004438,120]
[330579438,1719582103077,-1224.04429431,0.0004438,120]
[330579439,1719582103111,-1224.04429431,0.0004438,120]
[330579440,1719582103146,-1224.04429431,0.0004438,120]
[330579441,1719582103183,-1224.04429431,0.0004438,120]
[330579442,1719582103217,-1224.04429431,0.0004438,120]
[330579443,1719582103252,-1224.04429431,0.0004438,120]
[330579444,1719582103288,-1224.04429431,0.0004438,120]
[330579445,1719582103323,-1224.04429431,0.0004438,120]
[330579446,1719582103360,-1224.04429431,0.0004438,120]
[330579447,1719582103397,-1224.04429431,0.0004438,120]
[330579448,1719582103434,-1224.04429431,0.0004438,120]
[330579449,1719582103468,-1224.04429431,0.0004438,120]
[330579450,1719582103504,-1224.04429431,0.0004438,120]
[330579451,1719582103546,-1224.04429431,0.0004438,120]
[330579452,1719582103589,-1224.04429431,0.0004438,120]
[330579453,1719582103626,-1224.54,0.0004438,120]
[330579454,1719582103662,-2100.0,0.00044383,30]
[330579455,1719582103698,-900.0,0.00044383,30]
[330579456,1719582103733,-700.0,0.00044383,30]
[330579457,1719582103775,-600.0,0.00044383,30]
[330579458,1719582103812,-4400.0,0.00044383,30]
[330579459,1719582103852,-531.3652091,0.00044384,30]
[330579460,1719582103888,-176.54857333,0.00044384,30]
[330579461,1719582103924,-150.0,0.00044384,30]
[330579462,1719582103962,-150.0,0.00044384,30]
[330579463,1719582103997,-230.41111186,0.00044384,30]
[330579464,1719582104031,-150.0,0.00044384,30]
[330579465,1719582104065,-150.0,0.00044384,30]
[330579466,1719582104099,-150.0,0.00044384,30]
[330579467,1719582104135,-150.0,0.00044384,30]
[330579468,1719582104172,-150.0,0.00044384,30]
[330579469,1719582104206,-150.0,0.00044384,30]
[330579470,1719582104239,-297.96804634,0.00044384,30]
[330579471,1719582104276,-150.0,0.00044384,30]
[330579472,1719582104311,-150.0,0.00044384,30]
[330579473,1719582104348,-150.0,0.00044384,30]
[330579474,1719582104385,-1145.08,0.00044384,120]
[330579475,1719582104420,-219.0,0.0004439,30]
[330579476,1719582104455,-214.0,0.0004439,30]
[330579477,1719582104489,-218.0,0.0004439,30]
[330579478,1719582104527,-154.02,0.000444,36]
[330579479,1719582104562,-154.02,0.000444,36]
[330579480,1719582104598,-154.02,0.000444,36]
[330579481,1719582104639,-154.02,0.000444,36]
[330579482,1719582104675,-154.02,0.000444,36]
[330579483,1719582104713,-154.02,0.000444,36]
[330579484,1719582104749,-154.02,0.000444,36]
[330579485,1719582104782,-531.3652091,0.00044433,30]
[330579486,1719582104816,-176.54857333,0.00044433,30]
[330579487,1719582104851,-230.41111186,0.00044433,30]
[330579488,1719582104888,-531.3652091,0.00044483,30]
[330579489,1719582104921,-176.54857333,0.00044483,30]
[330579490,1719582104957,-230.41111186,0.00044483,30]
[330579491,1719582104990,-632.23,0.00044485,30]
[330579492,1719582105026,-632.23,0.00044485,30]
[330579493,1719582105058,-500000.0,0.000445,80]
[330579494,1719582105090,-1039.0,0.00044507,30]
[330579495,1719582105121,-150.0,0.0004451,30]
[330579496,1719582105155,-150.0,0.00044517,30]
[330579497,1719582105190,-531.3652091,0.00044533,30]
[330579498,1719582105223,-176.54857333,0.00044533,30]
[330579499,1719582105256,-230.41111186,0.00044533,30]
[330579500,1719582105289,-500.0,0.00044557,120]
[330579501,1719582105323,-531.3652091,0.00044583,30]
[330579502,1719582105356,-176.54857333,0.00044583,30]
[330579503,1719582105390,-230.41111186,0.00044583,30]
[330579504,1719582105425,-151.0,0.00044603,120]
[330579505,1719582105681,-531.3652091,0.00044633,30]
[330579506,1719582105719,-176.54857333,0.00044633,30]
[330579507,1719582105754,-230.41111186,0.00044633,30]
[330579508,1719582105788,-150.0,0.00044636,30]
[330579509,1719582105820,-150.0,0.0004465,30]
[330579510,1719582105854,-2495.51,0.00044657,108]
[330579511,1719582105887,-531.3652091,0.00044682,30]
[330579512,1719582105920,-176.54857333,0.00044682,30]
[330579513,1719582105954,-230.41111186,0.00044682,30]
[330579514,1719582105988,-531.3652091,0.00044732,30]
[330579515,1719582106020,-176.54857333,0.00044732,30]
[330579516,1719582106052,-230.41111186,0.00044732,30]
[330579517,1719582106085,-523.02536957,0.0004474,120]
[330579518,1719582106120,-632.23,0.00044758,30]
[330579519,1719582106155,-632.23,0.00044758,30]
[330579520,1719582106190,-150.0,0.00044763,30]
[330579521,1719582106225,-531.3652091,0.00044782,30]
[330579522,1719582106257,-176.54857333,0.00044782,30]
[330579523,1719582106297,-230.41111186,0.00044782,30]
[330579524,1719582106329,-150.0,0.00044783,30]
[330579525,1719582106363,-895.71806408,0.00044784,60]
[330579526,1719582106397,-531.3652091,0.00044832,30]
[330579527,1719582106430,-176.54857333,0.00044832,30]
[330579528,1719582106463,-230.41111186,0.00044832,30]
[330579529,1719582106495,-500.0,0.00044846,120]
[330579530,1719582106534,-531.3652091,0.00044882,30]
[330579531,1719582106568,-176.54857333,0.00044882,30]
[330579532,1719582106600,-230.41111186,0.00044882,30]
[330579533,1719582106637,-150.0,0.00044889,30]
[330579534,1719582106672,-1608.0,0.000449,30]
[330579535,1719582106706,-150.0,0.00044917,30]
[330579536,1719582106739,-2100.0,0.00044931,30]
[330579537,1719582106778,-544.52981216,0.00044931,30]
[330579538,1719582106817,-878.98953146,0.00044931,30]
[330579539,1719582106859,-745.03629142,0.00044931,30]
[330579540,1719582106893,-4400.0,0.00044931,30]
[330579541,1719582106926,-531.3652091,0.00044931,30]
[330579542,1719582106960,-176.54857333,0.00044931,30]
[330579543,1719582106992,-230.41111186,0.00044931,30]
[330579544,1719582107025,-151.0,0.00044932,120]
[330579545,1719582107059,-531.3652091,0.00044981,30]
[330579546,1719582107091,-176.54857333,0.00044981,30]
[330579547,1719582107140,-230.41111186,0.00044981,30]
[330579548,1719582107179,-50000.0,0.00045,35]
[330579549,1719582107214,-200.49629149,0.00045,120]
[330579550,1719582107248,-2039.53581926,0.00045,30]
[330579551,1719582107280,-1239.32427938,0.00045,120]
[330579552,1719582107314,-1865.14477881,0.00045,120]
[330579553,1719582107349,-191.0,0.00045,32]
[330579554,1719582107384,-199.999999,0.00045,120]
[330579555,1719582107421,-490.0,0.00045,32]
[330579556,1719582107454,-150.0,0.00045,85]
[330579557,1719582107488,-2950.0,0.00045,30]
[330579558,1719582107523,-1346.86449046,0.00045,90]
[330579559,1719582107558,-1443.59845876,0.00045,90]
[330579560,1719582107594,-754.999982,0.00045,120]
[330579561,1719582107632,-827.30958816,0.00045,45]
[330579562,1719582107667,-1381.69761323,0.00045,30]
[330579563,1719582107702,-308.44441372,0.00045,30]
[330579564,1719582107736,-333.84526594,0.00045,30]
[330579565,1719582107770,-189.43141543,0.00045,35]
[330579566,1719582107805,-200.17824878,0.00045,120]
[330579567,1719582107842,-177.79538065,0.00045,120]
[330579568,1719582107883,-294.59375757,0.00045,120]
[330579569,1719582107920,-500000.0,0.00045,90]
[330579570,1719582107957,-2577.45912935,0.00045,120]
[330579571,1719582107994,-500000.0,0.00045,120]
[330579572,1719582108035,-150.0,0.00045016,30]
[330579573,1719582108072,-531.3652091,0.00045031,30]
[330579574,1719582108107,-176.54857333,0.00045031,30]
[330579575,1719582108146,-230.41111186,0.00045031,30]
[330579576,1719582108181,-632.23,0.00045031,30]
[330579577,1719582108217,-632.23,0.00045031,30]
[330579578,1719582108251,-150.0,0.0004505,30]
[330579579,1719582108287,-531.3652091,0.00045081,30]
[330579580,1719582108322,-176.54857333,0.00045081,30]
[330579581,1719582108359,-230.41111186,0.00045081,30]
[330579582,1719582108396,-150.0,0.00045088,30]
[330579583,1719582108431,-150.0,0.00045088,30]
[330579584,1719582108469,-1099.51,0.00045125,120]
[330579585,1719582108504,-1099.511,0.00045125,120]
[330579586,1719582108540,-167.126,0.00045125,120]
[330579587,1719582108575,-167.127,0.00045125,120]
[330579588,1719582108612,-1099.511,0.00045125,120]
[330579589,1719582108652,-299.02434698,0.00045125,120]
[330579590,1719582108694,-167.127,0.00045125,120]
[330579591,1719582108730,-1099.511,0.00045125,120]
[330579592,1719582108765,-1099.51,0.00045125,120]
[330579593,1719582108805,-531.3652091,0.00045131,30]
[330579594,1719582108841,-176.54857333,0.00045131,30]
[330579595,1719582108877,-230.41111186,0.00045131,30]
[330579596,1719582108911,-1540.2735,0.0004514,30]
[330579597,1719582108946,-150.0,0.00045142,30]
[330579598,1719582108984,-531.3652091,0.00045181,30]
[330579599,1719582109020,-176.54857333,0.00045181,30]
[330579600,1719582109057,-230.41111186,0.00045181,30]
[330579601,1719582109090,-150.0,0.00045183,30]
[330579602,1719582109123,-2495.51,0.00045205,110]
[330579603,1719582109158,-531.3652091,0.0004523,30]
[330579604,1719582109193,-176.54857333,0.0004523,30]
[330579605,1719582109228,-230.41111186,0.0004523,30]
[330579606,1719582109263,-151.0,0.0004526,120]
[330579607,1719582109302,-150.0,0.00045269,30]
[330579608,1719582109336,-531.3652091,0.0004528,30]
[330579609,1719582109768,-176.54857333,0.0004528,30]
[330579610,1719582109807,-230.41111186,0.0004528,30]
[330579611,1719582109845,-632.23,0.00045305,30]
[330579612,1719582109877,-632.23,0.00045305,30]
[330579613,1719582109921,-150.0,0.00045316,30]
[330579614,1719582109954,-531.3652091,0.0004533,30]
[330579615,1719582109987,-176.54857333,0.0004533,30]
[330579616,1719582110021,-230.41111186,0.0004533,30]
[330579617,1719582110067,-150.0,0.0004537,30]
[330579618,1719582110102,-203.43702869,0.0004537,60]
[330579619,1719582110137,-531.3652091,0.0004538,30]
[330579620,1719582110171,-176.54857333,0.0004538,30]
[330579621,1719582110206,-230.41111186,0.0004538,30]
[330579622,1719582110239,-150.0,0.00045395,30]
[330579623,1719582110274,-531.3652091,0.0004543,30]
[330579624,1719582110309,-176.54857333,0.0004543,30]
[330579625,1719582110346,-230.41111186,0.0004543,30]
[330579626,1719582110392,-150.0,0.0004545,30]
[330579627,1719582110430,-2100.0,0.00045479,30]
[330579628,1719582110466,-2846.00905021,0.00045479,30]
[330579629,1719582110502,-531.3652091,0.00045479,30]
[330579630,1719582110538,-176.54857333,0.00045479,30]
[330579631,1719582110578,-230.41111186,0.00045479,30]
[330579632,1719582110618,-341.98087618,0.000455,90]
[330579633,1719582110657,-150.0,0.00045522,30]
[330579634,1719582110700,-531.3652091,0.00045529,30]
[330579635,1719582110739,-176.54857333,0.00045529,30]
[330579636,1719582110778,-230.41111186,0.00045529,30]
[330579637,1719582110816,-500.0,0.00045569,120]
[330579638,1719582110853,-632.23,0.00045578,30]
[330579639,1719582110888,-632.23,0.00045578,30]
[330579640,1719582110924,-531.3652091,0.00045579,30]
[330579641,1719582110962,-176.54857333,0.00045579,30]
[330579642,1719582110999,-230.41111186,0.00045579,30]
[330579643,1719582111034,-150.0,0.00045583,30]
[330579644,1719582111070,-150.0,0.00045616,30]
[330579645,1719582111108,-150.0,0.00045616,30]
[330579646,1719582111146,-531.3652091,0.00045629,30]
[330579647,1719582111184,-176.54857333,0.00045629,30]
[330579648,1719582111221,-230.41111186,0.00045629,30]
[330579649,1719582111255,-150.0,0.00045648,30]
[330579650,1719582111290,-531.3652091,0.00045679,30]
[330579651,1719582111329,-176.54857333,0.00045679,30]
[330579652,1719582111372,-230.41111186,0.00045679,30]
[330579653,1719582111408,-500.0,0.00045689,120]
[330579654,1719582111444,-150.0,0.00045716,30]
[330579655,1719582111481,-531.3652091,0.00045728,30]
[330579656,1719582111517,-176.54857333,0.00045728,30]
[330579657,1719582111554,-230.41111186,0.00045728,30]
[330579658,1719582111590,-2495.51,0.00045753,112]
[330579659,1719582111626,-150.0,0.00045774,30]
[330579660,1719582111661,-531.3652091,0.00045778,30]
[330579661,1719582111698,-176.54857333,0.00045778,30]
[330579662,1719582111734,-230.41111186,0.00045778,30]
[330579663,1719582111771,-150.0,0.00045793,30]
[330579664,1719582111806,-150.0,0.00045793,30]
[330579665,1719582111839,-531.3652091,0.00045828,30]
[330579666,1719582111875,-176.54857333,0.00045828,30]
[330579667,1719582111910,-230.41111186,0.00045828,30]
[330579668,1719582111944,-150.0,0.0004585,30]
[330579669,1719582111979,-531.3652091,0.00045878,30]
[330579670,1719582112013,-176.54857333,0.00045878,30]
[330579671,1719582112049,-230.41111186,0.00045878,30]
[330579672,1719582112083,-150.0,0.00045901,30]
[330579673,1719582112118,-151.0,0.00045918,120]
[330579674,1719582112154,-531.3652091,0.00045928,30]
[330579675,1719582112189,-176.54857333,0.00045928,30]
[330579676,1719582112224,-230.41111186,0.00045928,30]
[330579677,1719582112258,-531.3652091,0.00045978,30]
[330579678,1719582112292,-176.54857333,0.00045978,30]
[330579679,1719582112329,-230.41111186,0.00045978,30]
[330579680,1719582112367,-150.0,0.00045983,30]
[330579681,1719582112408,-50000.0,0.00046,36]
[330579682,1719582112444,-168.0,0.00046,96]
[330579683,1719582112480,-188.9489484,0.00046,100]
[330579684,1719582112515,-1000.0,0.00046,30]
[330579685,1719582112554,-1000.0,0.00046,120]
[330579686,1719582112596,-800.0,0.00046,120]
[330579687,1719582112633,-500000.0,0.00046,120]
[330579688,1719582112669,-959.42699708,0.00046027,30]
[330579689,1719582112705,-531.3652091,0.00046027,30]
[330579690,1719582112741,-176.54857333,0.00046027,30]
[330579691,1719582112776,-150.0,0.00046027,30]
[330579692,1719582112821,-230.41111186,0.00046027,30]
[330579693,1719582112857,-150.0,0.00046027,30]
[330579694,1719582112895,-219.0,0.0004603,30]
[330579695,1719582112933,-214.0,0.0004603,30]
[330579696,1719582112968,-218.0,0.0004603,30]
[330579697,1719582113005,-531.3652091,0.00046077,30]
[330579698,1719582113040,-176.54857333,0.00046077,30]
[330579699,1719582113077,-230.41111186,0.00046077,30]
[330579700,1719582113114,-150.0,0.00046116,30]
[330579701,1719582113151,-531.3652091,0.00046127,30]
[330579702,1719582113186,-176.54857333,0.00046127,30]
[330579703,1719582113220,-230.41111186,0.00046127,30]
[330579704,1719582113255,-150.0,0.00046154,30]
[330579705,1719582113290,-151.0,0.00046164,120]
[330579706,1719582113326,-531.3652091,0.00046177,30]